fUST/lending_fUST_20250219
["ID","MTS","AMOUNT","RATE_DAILY","PERIOD"]
[353557618,1739913045337,-6214.62,0.00014602,2]
[353557619,1739913045347,-1003.48,0.00014602,2]
[353557620,1739913045357,-1432.18,0.00014602,2]
[353557621,1739913045368,-259.75848684,0.00014602,2]
[353557622,1739913045385,-503.95681208,0.0001378,2]
[353557623,1739913045397,-240.24151316,0.00014602,2]
[353557624,1739913045407,-9755.02,0.00014602,2]
[353557625,1739913045417,-935.45,0.00014602,2]
[353557626,1739913045426,-500.0,0.00014602,2]
[353557627,1739913045436,-2252.38,0.00014602,2]
[353557628,1739913045445,-3699.04,0.00014602,2]
[353557629,1739913045455,-859.15,0.00014602,2]
[353557630,1739913045464,-4133.22,0.00014602,2]
[353557631,1739913045474,-500.0,0.00014602,2]
[353557632,1739913045483,-500.0,0.00014602,2]
[353557633,1739913045492,-2045.97,0.00014602,2]
[353557634,1739913045501,-500.0,0.00014602,2]
[353557635,1739913045510,-500.0,0.00014602,2]
[353557636,1739913045520,-67.34090324,0.00014602,2]
[353557637,1739913045624,-767.53,0.00014109,2]
[353557638,1739913045635,-767.53,0.00014191,2]
[353557639,1739913045647,-767.53,0.00014273,2]
[353557640,1739913045656,-767.53,0.00014356,2]
[353557641,1739913045666,-767.53,0.00014438,2]
[353557642,1739913045675,-767.53,0.0001452,2]
[353557643,1739913045685,-432.65909676,0.00014602,2]
[353557644,1739913045697,-2127.43,0.00014602,2]
[353557645,1739913045708,-500.0,0.00014602,2]
[353557646,1739913045720,-2110.38,0.00014602,2]
[353557647,1739913045730,-431.36469123,0.00014602,2]
[353557648,1739913045739,-1032.22,0.00014602,2]
[353557649,1739913045749,-607.07,0.00014602,2]
[353557650,1739913045758,-621.38,0.00014602,2]
[353557651,1739913045767,-500.0,0.00014602,2]
[353557652,1739913045777,-6994.62,0.00014602,2]
[353557653,1739913045786,-1017.9,0.00014602,2]
[353557654,1739913045796,-500.0,0.00014602,2]
[353557655,1739913045805,-806.97,0.00014602,2]
[353557656,1739913045814,-1226.33,0.00014602,2]
[353557657,1739913045824,-646.79,0.00014602,2]
[353557658,1739913045834,-1006.39,0.00014602,2]
[353557659,1739913045844,-523.58,0.00014602,2]
[353557660,1739913045854,-692.32,0.00014602,2]
[353557661,1739913045863,-500.0,0.00014602,2]
[353557662,1739913045872,-913.5,0.00014602,2]
[353557663,1739913045882,-585.20514769,0.00014602,2]
[353557664,1739913045892,-2933.55,0.00014602,2]
[353557665,1739913045902,-500.0,0.00014602,2]
[353557666,1739913045911,-767.53,0.00014602,2]
[353557667,1739913045920,-396.0,0.00014648,2]
[353557668,1739913045930,-500.0,0.00014684,2]
[353557669,1739913045940,-500.0,0.00014684,2]
[353557670,1739913045949,-184.33600996,0.00014684,2]
[353557671,1739913045959,-486.03,0.00014684,2]
[353557672,1739913045968,-574.01,0.00014684,2]
[353557673,1739913045977,-612.95,0.00014684,2]
[353557674,1739913045987,-500.0,0.00014684,2]
[353557675,1739913045996,-500.0,0.00014684,2]
[353557676,1739913046006,-524.42,0.00014684,2]
[353557677,1739913046015,-248.84,0.00014684,2]
[353557678,1739913046025,-500.0,0.00014684,2]
[353557679,1739913046034,-500.0,0.00014684,2]
[353557680,1739913046044,-1180.08,0.00014684,2]
[353557681,1739913046053,-1207.85,0.00014684,2]
[353557682,1739913046062,-1450.98,0.00014684,2]
[353557683,1739913046071,-597.44,0.00014684,2]
[353557684,1739913046081,-887.73,0.00014684,2]
[353557685,1739913046090,-527.26,0.00014684,2]
[353557686,1739913046099,-6214.62,0.00014684,2]
[353557687,1739913046109,-1003.48,0.00014684,2]
[353557688,1739913046118,-1432.18,0.00014684,2]
[353557689,1739913046128,-206.1,0.00014684,2]
[353557690,1739913046137,-9755.02,0.00014684,2]
[353557691,1739913046149,-935.45,0.00014684,2]
[353557692,1739913046158,-500.0,0.00014684,2]
[353557693,1739913046168,-2252.38,0.00014684,2]
[353557695,1739913046178,-3699.04,0.00014684,2]
[353557696,1739913046187,-859.15,0.00014684,2]
[353557697,1739913046196,-4133.22,0.00014684,2]
[353557698,1739913046205,-500.0,0.00014684,2]
[353557699,1739913046214,-500.0,0.00014684,2]
[353557700,1739913046224,-2045.97,0.00014684,2]
[353557701,1739913046233,-500.0,0.00014684,2]
[353557702,1739913046242,-500.0,0.00014684,2]
[353557703,1739913046252,-500.0,0.00014684,2]
[353557704,1739913046262,-2127.43,0.00014684,2]
[353557705,1739913046271,-500.0,0.00014684,2]
[353557706,1739913046281,-2110.38,0.00014684,2]
[353557707,1739913046291,-1032.22,0.00014684,2]
[353557708,1739913046300,-607.07,0.00014684,2]
[353557709,1739913046309,-621.38,0.00014684,2]
[353557710,1739913046318,-500.0,0.00014684,2]
[353557711,1739913046327,-6994.62,0.00014684,2]
[353557712,1739913046337,-1017.9,0.00014684,2]
[353557713,1739913046346,-500.0,0.00014684,2]
[353557714,1739913046355,-806.97,0.00014684,2]
[353557715,1739913046365,-1226.33,0.00014684,2]
[353557716,1739913046374,-646.79,0.00014684,2]
[353557717,1739913046384,-1006.39,0.00014684,2]
[353557718,1739913046393,-523.58,0.00014684,2]
[353557719,1739913046403,-692.32,0.00014684,2]
[353557720,1739913046412,-500.0,0.00014684,2]
[353557721,1739913046421,-913.5,0.00014684,2]
[353557722,1739913046431,-2933.55,0.00014684,2]
[353557723,1739913046442,-500.0,0.00014684,2]
[353557724,1739913046452,-767.53,0.00014684,2]
[353557725,1739913046462,-500.0,0.00014767,2]
[353557727,1739913046471,-500.0,0.00014767,2]
[353557728,1739913046480,-574.01,0.00014767,2]
[353557729,1739913046490,-612.95,0.00014767,2]
[353557730,1739913046500,-469.33,0.00014767,2]
[353557731,1739913046509,-500.0,0.00014767,2]
[353557732,1739913046518,-524.42,0.00014767,2]
[353557733,1739913046527,-500.0,0.00014767,2]
[353557734,1739913046537,-500.0,0.00014767,2]
[353557735,1739913046546,-1180.08,0.00014767,2]
[353557736,1739913046555,-1207.85,0.00014767,2]
[353557737,1739913046564,-1450.98,0.00014767,2]
[353557738,1739913046578,-597.44,0.00014767,2]
[353557739,1739913046587,-887.73,0.00014767,2]
[353557740,1739913046597,-527.26,0.00014767,2]
[353557741,1739913046606,-6214.62,0.00014767,2]
[353557742,1739913046616,-1003.48,0.00014767,2]
[353557743,1739913046626,-1432.18,0.00014767,2]
[353557744,1739913046636,-9755.02,0.00014767,2]
[353557745,1739913046648,-935.45,0.00014767,2]
[353557746,1739913046657,-500.0,0.00014767,2]
[353557747,1739913046667,-2252.38,0.00014767,2]
[353557748,1739913046676,-3699.04,0.00014767,2]
[353557749,1739913046685,-859.15,0.00014767,2]
[353557750,1739913046695,-4133.22,0.00014767,2]
[353557751,1739913046705,-500.0,0.00014767,2]
[353557752,1739913046715,-500.0,0.00014767,2]
[353557753,1739913046724,-2045.97,0.00014767,2]
[353557754,1739913046734,-500.0,0.00014767,2]
[353557755,1739913046743,-500.0,0.00014767,2]
[353557756,1739913046752,-500.0,0.00014767,2]
[353557757,1739913046762,-2127.43,0.00014767,2]
[353557758,1739913046857,-500.0,0.00014767,2]
[353557759,1739913046870,-2110.38,0.00014767,2]
[353557760,1739913046880,-1032.22,0.00014767,2]
[353557761,1739913046890,-607.07,0.00014767,2]
[353557762,1739913046901,-500.0,0.00014767,2]
[353557763,1739913046912,-6994.62,0.00014767,2]
[353557764,1739913046922,-621.38,0.00014767,2]
[353557765,1739913046932,-1017.9,0.00014767,2]
[353557766,1739913046941,-500.0,0.00014767,2]
[353557767,1739913046951,-806.97,0.00014767,2]
[353557768,1739913046961,-1226.33,0.00014767,2]
[353557769,1739913046970,-646.79,0.00014767,2]
[353557770,1739913046980,-1006.39,0.00014767,2]
[353557771,1739913046990,-523.58,0.00014767,2]
[353557772,1739913047000,-692.32,0.00014767,2]
[353557773,1739913047009,-500.0,0.00014767,2]
[353557774,1739913047019,-913.5,0.00014767,2]
[353557775,1739913047029,-2933.55,0.00014767,2]
[353557776,1739913047038,-500.0,0.00014767,2]
[353557777,1739913047049,-767.53,0.00014767,2]
[353557778,1739913047059,-1424.00008567,0.00014831,2]
[353557779,1739913047068,-455.38,0.00014849,2]
[353557780,1739913047077,-500.0,0.00014849,2]
[353557781,1739913047087,-574.01,0.00014849,2]
[353557782,1739913047096,-612.95,0.00014849,2]
[353557783,1739913047106,-500.0,0.00014849,2]
[353557784,1739913047116,-524.42,0.00014849,2]
[353557785,1739913047125,-466.02222285,0.00014849,2]
[353557786,1739913047135,-500.0,0.00014849,2]
[353557787,1739913047145,-1180.08,0.00014849,2]
[353557788,1739913047156,-1207.85,0.00014849,2]
[353557789,1739913047166,-1450.98,0.00014849,2]
[353557790,1739913047176,-597.44,0.00014849,2]
[353557791,1739913047186,-887.73,0.00014849,2]
[353557792,1739913047195,-527.26,0.00014849,2]
[353557793,1739913047204,-6214.62,0.00014849,2]
[353557794,1739913047214,-1003.48,0.00014849,2]
[353557795,1739913047224,-1432.18,0.00014849,2]
[353557796,1739913047234,-9755.02,0.00014849,2]
[353557797,1739913047245,-935.45,0.00014849,2]
[353557798,1739913047255,-500.0,0.00014849,2]
[353557799,1739913047265,-2252.38,0.00014849,2]
[353557800,1739913047275,-3699.04,0.00014849,2]
[353557801,1739913047284,-859.15,0.00014849,2]
[353557802,1739913047294,-4133.22,0.00014849,2]
[353557803,1739913047304,-500.0,0.00014849,2]
[353557804,1739913047314,-500.0,0.00014849,2]
[353557805,1739913047324,-2045.97,0.00014849,2]
[353557806,1739913047334,-500.0,0.00014849,2]
[353557807,1739913047344,-500.0,0.00014849,2]
[353557808,1739913047355,-500.0,0.00014849,2]
[353557809,1739913047364,-2127.43,0.00014849,2]
[353557810,1739913047375,-500.0,0.00014849,2]
[353557811,1739913047384,-2110.38,0.00014849,2]
[353557812,1739913047394,-1032.22,0.00014849,2]
[353557813,1739913047405,-607.07,0.00014849,2]
[353557814,1739913047415,-500.0,0.00014849,2]
[353557815,1739913047425,-6994.62,0.00014849,2]
[353557816,1739913047434,-621.38,0.00014849,2]
[353557817,1739913047444,-1017.9,0.00014849,2]
[353557818,1739913047453,-500.0,0.00014849,2]
[353557819,1739913047462,-806.97,0.00014849,2]
[353557820,1739913047472,-1226.33,0.00014849,2]
[353557821,1739913047481,-646.79,0.00014849,2]
[353557822,1739913047491,-1006.39,0.00014849,2]
[353557823,1739913047501,-523.58,0.00014849,2]
[353557824,1739913047511,-692.32,0.00014849,2]
[353557825,1739913047522,-162.13716213,0.00014849,2]
[353557826,1739913047532,-913.5,0.00014849,2]
[353557827,1739913047541,-2933.55,0.00014849,2]
[353557828,1739913047551,-500.0,0.00014849,2]
[353557829,1739913047562,-500.0,0.00014873,2]
[353557830,1739913047573,-500.0,0.00014873,2]
[353557831,1739913047583,-500.0,0.00014873,2]
[353557832,1739913047592,-500.0,0.00014873,2]
[353557833,1739913047603,-256.77996905,0.00014885,2]
[353557834,1739913047612,-631.0042468,0.000149,2]
[353557835,1739913047622,-6889.21,0.000149,15]
[353557836,1739913047631,-344393.492702,0.000149,2]
[353557837,1739913047641,-500.0,0.00014931,2]
[353557838,1739913047654,-574.01,0.00014931,2]
[353557839,1739913047664,-612.95,0.00014931,2]
[353557840,1739913047673,-527.75,0.00014931,2]
[353557841,1739913047682,-524.42,0.00014931,2]
[353557842,1739913047691,-500.0,0.00014931,2]
[353557843,1739913047701,-1180.08,0.00014931,2]
[353557844,1739913047710,-1207.85,0.00014931,2]
[353557845,1739913047719,-1450.98,0.00014931,2]
[353557846,1739913047729,-597.44,0.00014931,2]
[353557847,1739913047739,-887.73,0.00014931,2]
[353557848,1739913047749,-527.26,0.00014931,2]
[353557849,1739913047758,-6214.62,0.00014931,2]
[353557850,1739913047768,-1003.48,0.00014931,2]
[353557851,1739913047778,-1432.18,0.00014931,2]
[353557852,1739913047788,-9755.02,0.00014931,2]
[353557853,1739913047798,-935.45,0.00014931,2]
[353557854,1739913047809,-500.0,0.00014931,2]
[353557855,1739913047819,-2252.38,0.00014931,2]
[353557856,1739913047830,-3699.04,0.00014931,2]
[353557857,1739913047841,-859.15,0.00014931,2]
[353557858,1739913047850,-4133.22,0.00014931,2]
[353557859,1739913047861,-639.05892138,0.00014931,2]
[353557860,1739913047871,-320.71202402,0.00014931,2]
[353557861,1739913047882,-2045.97,0.00014931,2]
[353557862,1739913047892,-500.0,0.00014931,2]
[353557863,1739913047903,-500.0,0.00014931,2]
[353557864,1739913047913,-500.0,0.00014931,2]
[353557865,1739913047923,-2127.43,0.00014931,2]
[353557866,1739913047932,-500.0,0.00014931,2]
[353557867,1739913047941,-2110.38,0.00014931,2]
[353557868,1739913047951,-1032.22,0.00014931,2]
[353557869,1739913047960,-607.07,0.00014931,2]
[353557870,1739913047969,-500.0,0.00014931,2]
[353557871,1739913047979,-6994.62,0.00014931,2]
[353557872,1739913047988,-621.38,0.00014931,2]
[353557873,1739913047997,-1017.9,0.00014931,2]
[353557874,1739913048006,-500.0,0.00014931,2]
[353557875,1739913048015,-806.97,0.00014931,2]
[353557876,1739913048024,-1226.33,0.00014931,2]
[353557877,1739913048034,-646.79,0.00014931,2]
[353557878,1739913048044,-1006.39,0.00014931,2]
[353557879,1739913048054,-523.58,0.00014931,2]
[353557880,1739913048065,-692.32,0.00014931,2]
[353557881,1739913048075,-913.5,0.00014931,2]
[353557882,1739913048085,-2933.55,0.00014931,2]
[353557883,1739913048095,-500.0,0.00014931,2]
[353557884,1739913048105,-168.26106217,0.00014932,2]
[353557885,1739913048115,-135660.20000236,0.00015,5]
[353557886,1739913048125,-15939.278392,0.00015,5]
[353557887,1739913048135,-3352.20477158,0.00015,4]
[353557888,1739913048147,-6389.66889638,0.00015,3]
[353557889,1739913048159,-1056930.60754138,0.00015,2]
[353557890,1739913049804,-10674.02420994,0.00015,2]
[353557891,1739913051642,-500.0,0.00013698,2]
[353557892,1739913051652,-500.0,0.00013698,2]
[353557893,1739913051661,-500.0,0.00013698,2]
[353557894,1739913051670,-587.91385064,0.00013698,2]
[353557895,1739913051680,-500.0,0.00013698,2]
[353557896,1739913051689,-500.0,0.00013699,2]
[353557897,1739913051699,-384.23724604,0.00013699,2]
[353557898,1739913051708,-500.0,0.00013699,2]
[353557899,1739913051718,-500.0,0.0001378,2]
[353557900,1739913051727,-500.0,0.0001378,2]
[353557901,1739913051737,-500.0,0.00013863,2]
[353557902,1739913051746,-767.53,0.00014849,2]
[353557903,1739913051755,-767.53,0.00014931,2]
[353557904,1739913051764,-73690.71920189,0.00015,2]
[353557905,1739913052003,-500.0,0.00013698,2]
[353557906,1739913052012,-500.0,0.00013698,2]
[353557907,1739913052022,-240.55044473,0.00013699,2]
[353557908,1739913052032,-500.0,0.0001378,2]
[353557909,1739913052041,-500.0,0.0001378,2]
[353557910,1739913052050,-500.0,0.00013863,2]
[353557911,1739913052059,-384.54830207,0.00013863,2]
[353557912,1739913052068,-500.0,0.00013945,2]
[353557913,1739913052078,-500.0,0.00013945,2]
[353557914,1739913052087,-500.0,0.00014027,2]
[353557915,1739913052097,-226.66944274,0.00014027,2]
[353557916,1739913052118,-500.0,0.00013698,2]
[353557917,1739913052127,-273.33055726,0.00014027,2]
[353557918,1739913052136,-500.0,0.00014109,2]
[353557919,1739913052146,-500.0,0.00014109,2]
[353557920,1739913052157,-500.0,0.00014191,2]
[353557921,1739913052167,-500.0,0.00014191,2]
[353557922,1739913052176,-500.0,0.00014273,2]
[353557923,1739913052186,-500.0,0.00014273,2]
[353557924,1739913052195,-500.0,0.00014356,2]
[353557925,1739913052205,-500.0,0.00014356,2]
[353557926,1739913052214,-500.0,0.00014438,2]
[353557927,1739913052224,-500.0,0.00014438,2]
[353557928,1739913052234,-500.0,0.0001452,2]
[353557929,1739913052243,-500.0,0.00014602,2]
[353557930,1739913052253,-500.0,0.00014684,2]
[353557931,1739913052262,-500.0,0.00014767,2]
[353557932,1739913052272,-202672.06467311,0.00015,2]
[353557933,1739913054018,-25235.70729811,0.00015,2]
[353557938,1739913480317,400.0,9.041e-05,2]
[353557939,1739913854336,-292.3208597,0.0001243,2]
[353557940,1739913854370,-1707.6791403,0.0001254,2]
[353557941,1739913906569,-620.491262,0.00011907,2]
[353557942,1739913940128,-250.0,0.00011885,2]
[353557943,1739913940152,-250.0,0.00012005,2]
[353557944,1739913940177,-122.9810475,0.0001254,2]
[353557945,1739913940199,-611.2841548,0.0001254,2]
[353557946,1739913940221,-300.0,0.00012795,2]
[353557947,1739913940243,-24900.0,0.00012796,2]
[353557948,1739913940265,-4984.54598756,0.00012968,2]
[353557949,1739913940287,-700.0,0.00013068,2]
[353557950,1739913940308,-1900.47031724,0.00013188,2]
[353557951,1739913940331,-500.0,0.00013693,2]
[353557952,1739913940354,-500.0,0.00013693,2]
[353557953,1739913940374,-371.40600549,0.00013693,2]
[353557954,1739913940401,-500.0,0.00013693,2]
[353557955,1739913940424,-500.0,0.00013693,2]
[353557956,1739913940446,-500.0,0.00013693,2]
[353557957,1739913940468,-500.0,0.00013693,2]
[353557958,1739913940491,-500.0,0.00013693,2]
[353557959,1739913940513,-233.42437702,0.00013693,2]
[353557960,1739913940537,-500.0,0.00013693,2]
[353557961,1739913940559,-500.0,0.00013693,2]
[353557962,1739913940582,-504.25507107,0.00013693,2]
[353557963,1739913940605,-500.0,0.00013693,2]
[353557964,1739913940628,-500.0,0.00013693,2]
[353557965,1739913940654,-500.0,0.00013693,2]
[353557966,1739913940676,-500.0,0.00013693,2]
[353557967,1739913940699,-500.0,0.00013693,2]
[353557968,1739913940722,-500.0,0.00013693,2]
[353557969,1739913940745,-500.0,0.00013693,2]
[353557970,1739913940774,-168.25078699,0.00013693,2]
[353557971,1739913940808,-500.0,0.00013693,2]
[353557972,1739913940839,-500.0,0.00013693,2]
[353557973,1739913940869,-500.0,0.00013693,2]
[353557974,1739913940906,-166.47793661,0.00013693,2]
[353557975,1739913940937,-771.2096871,0.00013694,2]
[353557976,1739913940966,-449.31164562,0.00013697,2]
[353557977,1739913940999,-286.34794973,0.00013697,2]
[353557978,1739913941025,-325.16079662,0.00013698,2]
[353557979,1739913941053,-500.0,0.00013698,2]
[353557980,1739913941081,-500.0,0.00013698,2]
[353557981,1739913941108,-178.7874689,0.00013698,2]
[353557982,1739913941132,-500.0,0.00013698,2]
[353557983,1739913941159,-500.0,0.00013698,2]
[353557984,1739913941186,-500.0,0.00013698,2]
[353557985,1739913941219,-500.0,0.00013698,2]
[353557986,1739913941245,-500.0,0.00013698,2]
[353557987,1739913941274,-500.0,0.00013698,2]
[353557988,1739913941301,-500.0,0.00013698,2]
[353557989,1739913941325,-500.0,0.00013698,2]
[353557990,1739913941352,-500.0,0.00013698,2]
[353557991,1739913941381,-500.0,0.00013698,2]
[353557992,1739913941407,-500.0,0.00013698,2]
[353557993,1739913941433,-500.0,0.00013698,2]
[353557994,1739913941460,-500.0,0.00013698,2]
[353557995,1739913941483,-500.0,0.00013698,2]
[353557996,1739913941506,-500.0,0.00013698,2]
[353557997,1739913941530,-500.0,0.00013698,2]
[353557998,1739913941560,-392.76298702,0.00013698,2]
[353557999,1739913941596,-157.27088607,0.00013698,2]
[353558000,1739913941621,-500.0,0.00013698,2]
[353558001,1739913941647,-500.0,0.00013698,2]
[353558002,1739913941672,-505.07339497,0.00013698,2]
[353558003,1739913941697,-500.0,0.00013698,2]
[353558004,1739913941723,-502.74228486,0.00013698,2]
[353558005,1739913941747,-594.07439952,0.00013698,2]
[353558006,1739913941771,-500.0,0.00013698,2]
[353558007,1739913941796,-500.0,0.00013698,2]
[353558008,1739913941819,-500.0,0.00013698,2]
[353558009,1739913941843,-500.0,0.00013698,2]
[353558010,1739913941867,-500.0,0.00013698,2]
[353558011,1739913941892,-500.0,0.00013698,2]
[353558012,1739913941921,-508.91278574,0.00013698,2]
[353558013,1739913941947,-500.0,0.00013698,2]
[353558014,1739913941971,-473.91222373,0.00013698,2]
[353558015,1739913941998,-503.82662812,0.00013698,2]
[353558016,1739913942022,-501.08108455,0.00013698,2]
[353558017,1739913942045,-500.0,0.00013698,2]
[353558018,1739913942073,-688.1,0.00013698,2]
[353558019,1739913942097,-500.0,0.00013698,2]
[353558020,1739913942121,-500.0,0.00013698,2]
[353558021,1739913942146,-176.55585631,0.00013698,2]
[353558022,1739913942172,-500.0,0.00013698,2]
[353558023,1739913942197,-500.0,0.00013698,2]
[353558024,1739913942370,-500.0,0.00013698,2]
[353558025,1739913942391,-500.0,0.00013698,2]
[353558026,1739913942414,-500.0,0.00013698,2]
[353558027,1739913942436,-628.74285287,0.00013698,2]
[353558028,1739913942458,-500.0,0.00013698,2]
[353558029,1739913942480,-500.0,0.00013698,2]
[353558030,1739913942503,-500.0,0.00013698,2]
[353558031,1739913942525,-500.0,0.00013698,2]
[353558032,1739913942547,-489.15845413,0.00013698,2]
[353558033,1739913942569,-500.0,0.00013698,2]
[353558034,1739913942590,-500.0,0.00013698,2]
[353558035,1739913942611,-500.0,0.00013698,2]
[353558036,1739913942631,-500.0,0.00013698,2]
[353558037,1739913942653,-500.0,0.00013698,2]
[353558038,1739913942674,-250.04220008,0.00013698,2]
[353558039,1739913942696,-500.0,0.00013698,2]
[353558040,1739913942717,-500.0,0.00013698,2]
[353558041,1739913942738,-500.0,0.00013698,2]
[353558042,1739913942759,-500.0,0.00013698,2]
[353558043,1739913942781,-500.0,0.00013698,2]
[353558044,1739913942802,-608.40771035,0.00013698,2]
[353558045,1739913942822,-500.0,0.00013698,2]
[353558046,1739913942844,-500.0,0.00013698,2]
[353558047,1739913942865,-502.47901282,0.00013698,2]
[353558048,1739913942886,-326.75827312,0.00013698,2]
[353558049,1739913942911,-500.0,0.00013698,2]
[353558050,1739913942933,-500.0,0.00013698,2]
[353558051,1739913942954,-500.0,0.00013698,2]
[353558052,1739913942975,-500.0,0.00013698,2]
[353558053,1739913942997,-500.0,0.00013698,2]
[353558054,1739913943017,-500.0,0.00013698,2]
[353558055,1739913943040,-500.0,0.00013698,2]
[353558056,1739913943061,-500.0,0.00013698,2]
[353558057,1739913943082,-202.69970808,0.00013698,2]
[353558058,1739913943103,-500.0,0.00013698,2]
[353558059,1739913943124,-500.0,0.00013698,2]
[353558060,1739913943145,-614.15177362,0.00013698,2]
[353558061,1739913943166,-379.03767898,0.00013698,2]
[353558062,1739913943187,-500.0,0.00013698,2]
[353558063,1739913943208,-500.0,0.00013698,2]
[353558064,1739913943229,-327.78551959,0.00013698,2]
[353558065,1739913943250,-500.0,0.00013698,2]
[353558066,1739913943271,-500.0,0.00013698,2]
[353558067,1739913943293,-500.0,0.00013698,2]
[353558068,1739913943313,-500.0,0.00013698,2]
[353558069,1739913943334,-500.0,0.00013698,2]
[353558070,1739913943356,-500.0,0.00013698,2]
[353558071,1739913943379,-500.0,0.00013698,2]
[353558072,1739913943403,-500.0,0.00013698,2]
[353558073,1739913943425,-500.0,0.00013698,2]
[353558074,1739913943450,-500.0,0.00013698,2]
[353558075,1739913943473,-500.0,0.00013698,2]
[353558076,1739913943495,-500.0,0.00013698,2]
[353558077,1739913943518,-489.85443509,0.00013698,2]
[353558078,1739913943539,-500.0,0.00013698,2]
[353558079,1739913943562,-500.0,0.00013698,2]
[353558080,1739913943582,-500.0,0.00013698,2]
[353558081,1739913943603,-500.0,0.00013698,2]
[353558082,1739913943625,-500.0,0.00013698,2]
[353558083,1739913943645,-500.0,0.00013698,2]
[353558084,1739913943668,-500.0,0.00013698,2]
[353558085,1739913943689,-500.0,0.00013698,2]
[353558086,1739913943710,-500.0,0.00013698,2]
[353558087,1739913943732,-409.41605976,0.00013698,2]
[353558088,1739913943757,-500.0,0.00013698,2]
[353558089,1739913943779,-500.0,0.00013698,2]
[353558090,1739913943801,-500.0,0.00013698,2]
[353558091,1739913943823,-500.0,0.00013698,2]
[353558092,1739913943844,-500.0,0.00013698,2]
[353558093,1739913943865,-500.0,0.00013698,2]
[353558094,1739913943887,-500.0,0.00013698,2]
[353558095,1739913943913,-500.0,0.00013698,2]
[353558096,1739913943935,-500.0,0.00013698,2]
[353558097,1739913943956,-500.0,0.00013698,2]
[353558098,1739913943979,-500.0,0.00013698,2]
[353558099,1739913944000,-500.0,0.00013698,2]
[353558100,1739913944021,-500.0,0.00013698,2]
[353558101,1739913944041,-429.57794078,0.00013698,2]
[353558102,1739913944061,-500.0,0.00013698,2]
[353558103,1739913944082,-500.0,0.00013698,2]
[353558104,1739913944102,-500.0,0.00013698,2]
[353558105,1739913944124,-500.0,0.00013698,2]
[353558106,1739913944145,-500.0,0.00013698,2]
[353558107,1739913944168,-500.0,0.00013698,2]
[353558108,1739913944189,-500.0,0.00013698,2]
[353558109,1739913944211,-500.0,0.00013698,2]
[353558110,1739913944231,-500.0,0.00013698,2]
[353558111,1739913944252,-338.57496787,0.00013698,2]
[353558112,1739913944273,-500.0,0.00013698,2]
[353558113,1739913944294,-500.0,0.00013698,2]
[353558114,1739913944315,-500.0,0.00013698,2]
[353558115,1739913944336,-500.0,0.00013698,2]
[353558116,1739913944357,-500.0,0.00013698,2]
[353558117,1739913944378,-500.0,0.00013698,2]
[353558118,1739913944400,-500.0,0.00013698,2]
[353558119,1739913944421,-500.0,0.00013698,2]
[353558120,1739913944441,-302.63426474,0.00013698,2]
[353558121,1739913944463,-500.0,0.00013698,2]
[353558122,1739913944483,-500.0,0.00013698,2]
[353558123,1739913944510,-447.01958492,0.00013698,2]